Cogmind - Beta 17 @@@ ROGUE MODE // 2026.07.24 @ 16:22:00 Player: Lazz Result: Destroyed by D-53 Grenadier with Mini Grenade Launcher Performance ------------- Evolutions (0) 0 Regions Visited (2) 400 Robots Destroyed (9) 45 Value Destroyed (129) 129 Prototype IDs (1) 20 Alien Tech Used (0) 0 Bonus (0) 0 TOTAL SCORE: 594 Bonus ------- None Cogmind --------- Core Integrity 0/250 Matter 300/300 Energy 160/160 System Corruption 0% Temperature Cool (0) Movement Core (200) Ox3 Location -10/Mines Parts ------- > --- POWER (1) -------- Light Nuclear Core > --- PROPULSION (2) --- (None) > --- UTILITY (2) ------ Small Storage Unit > --- WEAPON (2) ------- (None) > --- INVENTORY (8) ---- Wheel Experimental Sensor Array Improved Terrain Scanner Small Laser Mining Laser Mining Laser Peak State ------------ > --- POWER ------------ Light Nuclear Core > --- PROPULSION ------- Wheel Compact Wheel > --- UTILITY ---------- Small Storage Unit Experimental Sensor Array > --- WEAPON ----------- Light Assault Rifle Light Assault Rifle > --- INVENTORY -------- Wheel Improved Terrain Scanner Small Laser Mining Laser Mining Laser [Rating: 17] Favorites ----------- Power Ion Engine Engine Ion Engine Power Core Light Nuclear Core Propulsion Wheel Wheel Wheel Utility Small Storage Unit Device Experimental Sensor Array Storage Small Storage Unit Weapon Light Assault Rifle Ballistic Gun Light Assault Rifle Build | -11 -10 -10 ------- Run | Yrd Mat Min Slots Evolved . | . . . Power . | . . . Propulsion . | . . . Utility . | . . . Weapon . | . . . Parts Attached 9 | 6 . 3 Power 2 | 1 . 1 Engine 1 | 1 . . Core 1 | . . 1 Reactor . | . . . Propulsion 3 | 2 . 1 Treads . | . . . Leg . | . . . Wheel 3 | 2 . 1 Hover . | . . . Flight . | . . . Utility 2 | 1 . 1 Device 1 | . . 1 Storage 1 | 1 . . Processor . | . . . Hackware . | . . . Protection . | . . . Artifact . | . . . Weapon 2 | 2 . . Energy Gun . | . . . Energy Cannon . | . . . Ballistic Gun 2 | 2 . . Ballistic Cannon . | . . . Launcher . | . . . Special Weapon . | . . . Impact Weapon . | . . . Slashing Weapon . | . . . Piercing Weapon . | . . . Special Melee Weapon . | . . . Unidentified Prototypes 1 | . . 1 Parts Lost 4 | . . 4 Power . | . . . Propulsion 2 | . . 2 Utility . | . . . Weapon 2 | . . 2 Highest Loss Streak 4 | . . 4 To Critical Strikes . | . . . Average Backups 3 | 1 3 4 Power . | . . . Propulsion . | . . . Utility . | . 1 1 Weapon 2 | . 2 2 Tool/Special . | . . . Unused Backups 6 | . . 6 Power . | . . . Propulsion . | . . . Utility 3 | . . 3 Weapon 3 | . . 3 Tool/Special . | . . . Average Slot Usage (%) 86 | . 85 86 Engine 7 | . 14 6 Core 6 | . . 7 Wheel 27 | . 28 27 Device 2 | . . 3 Storage 14 | . 14 14 Ballistic Gun 26 | . 28 26 Peak Build Rating 17 | 6 6 17 Average Rating 7 | 5 6 8 On Entrance 4 | . 6 6 Avg Prop Armor Cover (%) . | . . . Naked Turns . | . . . Heaviest Build 13 | 12 12 13 Greatest Support 26 | 26 26 26 Greatest Overweight (x) 3 | . . 3 Average Overweight (x) . | . . . Largest Inventory Capacity 8 | 8 8 8 Average Capacity 7 | 7 8 8 Most Carried 6 | 3 3 6 Average Carried 3 | 1 3 4 Final Capacity 8 | 8 8 8 Final Carried 6 | 3 3 6 Class Distribution -------------------- 100% | Mutant Dominant Class ---------------- Mutant | -10/Materials Mutant | -10/Mines Resources | -11 -10 -10 ----------- Run | Yrd Mat Min Matter Collected 344 | 290 . 54 Remotely . | . . . Salvage Created 303 | 174 . 129 Parts 21 | 11 . 10 Haulers Intercepted . | . . . Recyclers Shooed 1 | 1 . . Parts Field Recycled . | . . . Retrieved Matter . | . . . Parts Self-Destructed . | . . . Prevented . | . . . Parts Restored . | . . . Kills | -11 -10 -10 ------- Run | Yrd Mat Min Combat Hostiles Destroyed 2 | . . 2 Guns 2 | . . 2 Classes Destroyed 3 | 2 . 1 Tunneler 6 | 5 . 1 Recycler 1 | 1 . . Grunt 2 | . . 2 Best Kill Streak 6 | 6 . 2 Combat Bots Only 1 | . . 1 Max Kills in Single Turn 1 | 1 . 1 Gunslinging . | . . . Exploded . | . . . Melee . | . . . Uniques/NPCs Destroyed . | . . . Combat | -11 -10 -10 -------- Run | Yrd Mat Min Hostile Shots Fired 32 | . 8 24 Missed 3 | . 1 2 Hits 29 | . 7 22 Projectile 29 | . 7 22 AOE 7 | . . 7 Critical Strikes 3 | . . 3 Damage Taken 603 | . 80 523 Core 256 | . 12 244 Absorbed by Shields . | . . . Core Remaining (%) 100 | 100 . . Volleys Fired 34 | 15 1 18 Largest 2 | 2 2 2 Hottest 40 | 40 40 40 Shots Fired 66 | 30 2 34 Gun 66 | 30 2 34 Cannon . | . . . Launcher . | . . . Special . | . . . Kinetic 66 | 30 2 34 Thermal . | . . . Explosive . | . . . Electromagnetic . | . . . Robot Hit Streak 13 | 9 . 13 Robot Miss Streak 3 | 1 . 3 Penetration Max . | . . . Secondary Targets . | . . . Shots Hit Robots 48 | 22 . 26 Core Hits 24 | 12 1 11 Critical Kills . | . . . Critical Parts Destroyed 1 | 1 . . Critical Strikes 1 | 1 . . Destroy 1 | 1 . . Melee Attacks . | . . . Impact . | . . . Slashing . | . . . Piercing . | . . . Sneak Attacks . | . . . Combat Hostiles . | . . . Follow-up Attacks . | . . . Damage Inflicted 393 | 167 9 217 Guns 393 | 167 9 217 Cannons . | . . . Explosions . | . . . Melee . | . . . Ramming . | . . . Kinetic 393 | 167 9 217 Thermal . | . . . Explosive . | . . . Electromagnetic . | . . . Impact . | . . . Slashing . | . . . Piercing . | . . . Highest Corruption . | . . . Average Corruption . | . . . Corruption Purged . | . . . Corruption Blocked . | . . . Overload Shots . | . . . Overflow Damage . | . . . Projectiles . | . . . Explosions . | . . . Melee . | . . . Knockbacks . | . . . Impact . | . . . Kinetic . | . . . Secondary . | . . . Self-Inflicted Damage . | . . . Shots . | . . . Rammed . | . . . Targets Rammed . | . . . Kicked . | . . . Crushed . | . . . Highest Temperature 53 | . 6 53 Average Temperature 22 | . 6 22 Received Heat Transfer 225 | . 42 183 Siege Activations . | . . . Martial Activations . | . . . Shielding Activations . | . . . Robots Disrupted . | . . . Combat Hostiles . | . . . Robots Corrupted . | . . . Combat Hostiles . | . . . Parts Fried . | . . . Impact Corruptions . | . . . Robots Melted . | . . . Combat Hostiles . | . . . Parts Melted . | . . . Heat Transferred . | . . . Parts Sabotaged . | . . . Parts Stolen . | . . . Parts Stripped . | . . . Power Chain Reactions . | . . . Alert | -11 -10 -10 ------- Run | Yrd Mat Min Maximum Alert Level . | . . . Low Security (%) 100 | 100 100 100 Level 1 . | . . . Level 2 . | . . . Level 3 . | . . . Level 4 . | . . . Level 5 . | . . . High Security . | . . . Max Security . | . . . Peak Influence 53 | 10 3 53 Initial 3 | . 3 . Average 10 | 2 2 14 Influence Increases 93 | 30 . 63 Destroy 0b10 Robot/C 40 | . . 40 Destroy 0b10 Robot/NC 35 | 30 . 5 Destroy Leader 10 | . . 10 Allied During Kill 8 | . . 8 Influence Decreases 93 | 25 5 63 Entered New Map 2 | . 2 . Time Decay 88 | 25 3 60 Lost Ally 3 | . . 3 Squads Dispatched . | . . . Investigation . | . . . Extermination . | . . . Reinforcement . | . . . Assault . | . . . Garrison . | . . . Intercept . | . . . Searches Triggered . | . . . Construction Impeded . | . . . Haulers Reinforced . | . . . Active Scanning Responses . | . . . Cargo Convoy Interrupts . | . . . Stealth | -11 -10 -10 --------- Run | Yrd Mat Min Distress Signals . | . . . Communications Jammed . | . . . Distress Signals . | . . . Times Spotted 22 | . 2 20 Peak Tracking Total 20 | . 2 20 Tactical Retreats 1 | . . 1 Traps | -11 -10 -10 ------- Run | Yrd Mat Min Traps Triggered . | . . . Indirectly . | . . . Trap Hack Attempts . | . . . Triggered . | . . . Disarmed . | . . . Reprogrammed . | . . . Reused . | . . . Traps Extracted . | . . . Installed . | . . . Triggered . | . . . Machines | -11 -10 -10 ---------- Run | Yrd Mat Min Machines Disabled . | . . . Max in Single Turn . | . . . Machines Repaired . | . . . Machines Dismantled . | . . . Machines Sabotaged . | . . . Overloaded Fab Kills . | . . . Hacking | -11 -10 -10 --------- Run | Yrd Mat Min Machines Accessed . | . . . Terminals . | . . . Fabricators . | . . . Repair Stations . | . . . Recycling Units . | . . . Scanalyzers . | . . . Garrison Access . | . . . Total Hacks . | . . . Successful . | . . . Failed . | . . . Catastrophic . | . . . Database Lockouts . | . . . Manual . | . . . Terminals . | . . . Fabricators . | . . . Repair Stations . | . . . Recycling Units . | . . . Scanalyzers . | . . . Garrison Access . | . . . Terminal Hacks . | . . . Fabricator Hacks . | . . . Repair Station Hacks . | . . . Recycling Unit Hacks . | . . . Scanalyzer . | . . . Garrison Access Hacks . | . . . Unauthorized Hacks . | . . . Terminals . | . . . Fabricators . | . . . Repair Stations . | . . . Recycling Units . | . . . Scanalyzers . | . . . Garrison Access . | . . . Data Cores Recovered . | . . . Used . | . . . Hacking Detections . | . . . Full Trace Events . | . . . Feedback Events . | . . . Feedback Blocked . | . . . Robot Schematics Acquired . | . . . Robots Built . | . . . Authchips . | . . . Time . | . . . Total Robot Build Rating . | . . . Part Schematics Acquired . | . . . Parts Built . | . . . Authchips . | . . . Time . | . . . Total Part Build Rating . | . . . Part Studies Acquired . | . . . Parts Repaired . | . . . Time . | . . . Parts Recycled . | . . . Recycled Matter . | . . . Retrieved Matter . | . . . Retrieved Components . | . . . Parts Scanalyzed . | . . . Part Schematics Acquired . | . . . Parts Damaged . | . . . Bothacking | -11 -10 -10 ------------ Run | Yrd Mat Min Used RIF Installer . | . . . Robots Hacked . | . . . Non-combat . | . . . Combat . | . . . Robot Hacks Applied . | . . . Relay Couplers Released . | . . . Fabnet Peak Effective % . | . . . Robots Rewired . | . . . Allies Hacked . | . . . Hacks Repelled . | . . . Allies | -11 -10 -10 -------- Run | Yrd Mat Min Total Allies 3 | . . 3 Largest Group 3 | . . 3 Highest-Rated Group 40 | . . 40 Highest-Rated Ally 16 | . . 16 Total Orders . | . . . Ally Attacks 8 | . . 8 Total Damage 56 | . . 56 Kills . | . . . Allies Corrupted . | . . . Allies Melted . | . . . Intel | -11 -10 -10 ------- Run | Yrd Mat Min Active Infowar (turns) 44 | . . 44 Sensors 44 | . . 44 Robot Analysis Total . | . . . Derelict Logs Recovered 1 | . . 1 Drone Launches . | . . . Drone Recoveries . | . . . Exploration | -11 -10 -10 ------------- Run | Yrd Mat Min Turns Passed 335 | 88 28 219 Spaces Moved 248 | 42 29 177 Core 3 | 2 . 1 Treads . | . . . Legs . | . . . Wheels 245 | 40 29 176 Hover . | . . . Flight . | . . . Fastest Speed 50 | 50 90 90 Average Speed 90 | 88 90 90 Slowest Speed 200 | 100 90 200 Overloaded Moves . | . . . Propulsion Burnouts . | . . . Robots Hopped . | . . . Potential Cave-ins . | . . . Cave-ins Triggered . | . . . Exploration Rate (%) 13 | 3 10 27 Regions Visited 2 Branch Regions 1 Pre-discovered Areas . | . . . Known Exits Taken . | . . . Unknown Exits Taken 2 | 1 1 . Scrap Searched . | . . . Spaces Dug . | . . . Terrain Destroyed . | . . . Melee . | . . . Projectile . | . . . AOE . | . . . Terrain Rammed . | . . . Walls Destroyed . | . . . Machines Disabled . | . . . Actions | -11 -10 -10 --------- Run | Yrd Mat Min Total 303 | 65 29 209 Wait 4 | . . 4 Move 246 | 41 28 177 Hop . | . . . Pick Up 6 | 3 . 3 Fast Attach 7 | 6 . 1 Attach . | . . . Detach 1 | . . 1 Swap 2 | . . 2 Drop 3 | . . 3 Fire 34 | 15 1 18 Melee . | . . . Ram . | . . . Kick . | . . . Crush . | . . . Escape Stasis . | . . . Rewire . | . . . Trap . | . . . Miscellaneous . | . . . Route ------- -11/Scrapyard -10/Materials -10/Mines History --------- Turn | Location | Event 15 | -11/Scrapyard | Discovered new exit (range 16) 89 | -11/Scrapyard | Entered Materials 101 | -10/Materials | Discovered new exit (range 16) 117 | -10/Materials | Entered Mines 132 | -10/Mines | Found a Scrap Suit stashed away for nefarious purposes 134 | -10/Mines | Found Scrap Suit 156 | -10/Mines | Assisted by bots powering up and referring to "LRC-V3" 275 | -10/Mines | Found a damaged Exp. Sensor Array with a note attached 277 | -10/Mines | Found Prototype Device 277 | -10/Mines | Identified Exp. Sensor Array 287 | -10/Mines | Assembled infested the area 292 | -10/Mines | Assisted by a Guerilla fighting off Assembled 317 | -10/Mines | Build established: Mutant 318 | -10/Mines | Core integrity fell below 50% 335 | -10/Mines | Core integrity fell below 20% 336 | -10/Mines | Destroyed by D-53 Grenadier with Mini Grenade Launcher Last Messages --------------- 00298_ HV Slug penetrates Wall. 00298_ VV-VIK(h) shuts down. 00300_ as-05996 sneak attacks. 00300_ VV-VIK(h) destroyed. 00305_ as-05996 suffers critical hit (Burn). 00316_ Trooper 1b destroyed. 00317_ C-45 Heavy ARC bursts open, deploying its payload. 00317_ D-53 Grenadier unfolds itself. 00317_ Lgt. Assault Rifle destroyed. 00319_ The unstable cave ceiling collapses. 00320_ Com. Wheel destroyed. 00321_ K-01 Serf destroyed. 00327_ as-70556 destroyed. 00327_ as-38238 destroyed. 00327_ as-48448 destroyed. 00330_ The unstable cave ceiling collapses. 00334_ Wheel destroyed. 00334_ Lgt. Assault Rifle destroyed. 00336_ The unstable cave ceiling collapses. Map ----- +----------------------------------------------------+ | | | | | | | | | | | | | | | | | | | | | | | | | | | | | | | | | | | ?????????????????????????????????????????????????? | | ?????????????????????????????????????????????????? | | ?????????????????????????########?????????####???? | | ????????????????????????## ##?????#### ##??? | | ???????????????????????## #####?# #??? | | ??????????????????????## # ### ##?? | | ?????????????????????## ## ##? | | ????????? ### # ##### ## | | ????????? r @ d # ### # | | ????????????# ## ### # | | ????????????#### # # #### ### | | ???????????????### ?######## ### #?? | | ?????????????????##?????????## # ## #?? | | ?????????????????????????????# %% ## ## #?? | | ?????????????????????????????# ## !### #?? | | ????????????????????????????# #### ### #?? | | ???????????????????????????## #??#**= #?? | | ???????????????????????????# #?##%####### | | ???????????????????????????# ##?# [% | | ???????????????????????????## ??# [ | | ????????????????????????????## ???# | | ?????????????????????????????## % #????# | | ??????????????????????????????# ##???# """ """ | | ??????????????????????????????# #???# """ """ | | ??????????????????????????????## #???# """ """ | | ???????????????????????????????###%!#???# | | ?????????????????????????????????# #???# """ """ | | ?????????????????????????????????# =#???# """ """ | | ?????????????????????????????????#*[#???# """ """ | | ?????????????????????????????????# %#???# | | ?????????????????????????????????# !#??########### | | ?????????????????????????????????# =## ##???????? | | ???????????????????????????????### #???????? | +----------------------------------------------------+ Best States ------------- Heat Dissipation 25 Energy Generation 14 Energy Capacity 250 Matter Stores 300 Matter Capacity 300 Sight Range 16 Robot Scan Range 20 Terrain Scan Density 10 Evasion (%) 42 Item Schematics ----------------- None Robot Schematics ------------------ None Fabricated ------------ Nothing Repaired ---------- Nothing Studied --------- None Alien Tech Used ----------------- None Achievements -------------- None Challenges ------------ None Game ------ Seed IonCommPulseblaster Manual? 0 Play Time 00:05:09 Cumulative 233.0 hours Start 2026.07.24 @ 16:18:57 End 2026.07.24 @ 16:22:00 Sessions 1 Manual Loads 0 Difficulty Rogue Special Mode None Game No. 313 Rogue 313 Adventurer 0 Explorer 0 Win Type - Total 3 Types 2/0/0/1/0/0/0/0/0/0 Lore% 77 Gallery% 64 Achievement% 52 Wizard Run 0 Options --------- Layout 2 ASCII 0 Keyboard 0 Movement Mouse Keybinds 0 Fullscreen 1 Font 24/Smallcaps Map View 50x44 Zoom Use 0% Tactical HUD 1 Map Filters NONE Filters NONE Steam 1 RUN: 3fa8d44e-0cc4-44cf-bb97-bacdbb7cba4a